Workbook

Sheet External Grant Budget
A1: TIAA | B1: Course Release
A2: SERS | B2: Additonal Compensation
A3: Social Security | B3: SCUPA
A4: Medicare | B4: AFSCME
A5: OTHER | B5: N/A
A6: Shippensburg University
A7: Institute for Public Service and Sponsored Programs
A8: Grant Budget Template
F9: Name of PI(s)
F10: Title of Grant Proposal
F11: $ Amount Total and estimated Period of Performance
F14: Year 1 | J14: Year 2 | N14: Year 3 | R14: TOTAL
A15: PERSONNEL
B16: SALARIES & WAGES
B17: Position/Name | C17: Type of Compensation | D17: Hourly Rate | F17: Hours | H17: Total | J17: Hours | L17: Total | N17: Hours | P17: Total | R17: Total | T17: Notes:
B18: Example | C18: Additonal Compensation | D18: 25 | F18: 10 | H18: =ROUND(D18*F18,2) -> 250 | J18: 10 | L18: =ROUND((D18*J18)*1.03,2) -> 257.5 | N18: 10 | P18: =ROUND((D18*N18)*1.03*1.03,2) -> 265.23 | R18: =H18+L18+P18 -> 772.73
H19: =ROUND(D19*F19,2) -> 0 | L19: =ROUND((D19*J19)*1.03,2) -> 0 | P19: =ROUND((D19*N19)*1.03*1.03,2) -> 0 | R19: =H19+L19+P19 -> 0
H20: =ROUND(D20*F20,2) -> 0 | L20: =ROUND((D20*J20)*1.03,2) -> 0 | P20: =ROUND((D20*N20)*1.03*1.03,2) -> 0 | R20: 0
H21: =ROUND(D21*F21,2) -> 0 | L21: =ROUND((D21*J21)*1.03,2) -> 0 | P21: =ROUND((D21*N21)*1.03*1.03,2) -> 0 | R21: 0
H22: =ROUND(D22*F22,2) -> 0 | L22: =ROUND((D22*J22)*1.03,2) -> 0 | P22: =ROUND((D22*N22)*1.03*1.03,2) -> 0 | R22: 0
B24: TOTAL SALARIES | H24: =SUM(H18:H22) -> 250 | L24: =SUM(L18:L22) -> 257.5 | P24: =SUM(P18:P22) -> 265.23 | R24: =SUM(R18:R22) -> 772.73
B26: BENEFITS (pick from drop down box)
B27: Social Security | C27: =IF(B27="SERS",0.2483,IF(B27="PSERS",0.2057,IF(B27="TIAA",0.0929,IF(B27="Social Security",0.062,IF(B27="Medicare",0.0145,0))))) -> 0.062 | H27: =+$H$24*C27 -> 15.5 | L27: =+$L$24*C27 -> 15.965 | P27: =+$P$24*C27 -> 16.44426 | R27: =H27+L27+P27 -> 47.90926
B28: Medicare | C28: =IF(B28="SERS",0.2483,IF(B28="PSERS",0.2057,IF(B28="TIAA",0.0929,IF(B28="Social Security",0.062,IF(B28="Medicare",0.0145,0))))) -> 0.0145 | H28: =+$H$24*C28 -> 3.625 | L28: =+$L$24*C28 -> 3.73375 | P28: =+$P$24*C28 -> 3.845835 | R28: =H28+L28+P28 -> 11.204585
B29: TIAA | C29: 0.0929 | H29: 23.225 | L29: 23.92175 | P29: 24.639867 | R29: 71.786617
B30: OTHER | C30: 0 | H30: 0 | L30: 0 | P30: 0 | R30: 0
B31: OTHER | H31: 0 | L31: 0 | P31: 0 | R31: 0
B33: TOTAL BENEFITS | H33: =SUM(H27:H31) -> 42.35 | L33: =SUM(L27:L31) -> 43.6205 | P33: =SUM(P27:P31) -> 44.929962 | R33: =SUM(R27:R31) -> 130.900462
A35: TOTAL PERSONNEL | H35: =H24+H33 -> 292.35 | L35: =L24+L33 -> 301.1205 | P35: =P24+P33 -> 310.159962 | R35: =R24+R33 -> 903.630462
A37: OTHER EXPENSES
B38: PURCHASED SERVICES
B39: Printing | R39: =H39+L39+P39 -> 0
B40: Travel | R40: =H40+L40+P40 -> 0
B41: Consultants | R41: 0
B43: TOTAL PURCHASED SERVICES | H43: =SUM(H39:H41) -> 0 | L43: =SUM(L39:L41) -> 0 | P43: =SUM(P39:P41) -> 0 | R43: =SUM(R39:R41) -> 0
B45: SUPPLIES & OTHER
B46: Supplies | R46: =H46+L46+P46 -> 0
B47: Materials | R47: =H47+L47+P47 -> 0
B48: Equipment | R48: 0
B49: Other | R49: 0
B51: TOTAL SUPPLIES & OTHER | H51: =SUM(H46:H49) -> 0 | L51: =SUM(L46:L49) -> 0 | P51: =SUM(P46:P49) -> 0 | R51: =SUM(R46:R49) -> 0
A53: TOTAL OTHER EXPENSES | H53: =H43+H51 -> 0 | L53: =L43+L51 -> 0 | P53: =P43+P51 -> 0 | R53: =R43+R51 -> 0
A55: TOTAL DIRECT EXPENSES | H55: =H35+H53 -> 292.35 | L55: =L35+L53 -> 301.1205 | P55: =P35+P53 -> 310.159962 | R55: =R35+R53 -> 903.630462
A57: INDIRECT COSTS
B58: Indirect Base | C58: Rate (%)
B59: Salary, Wages & Benefits | C59: 0.45 | H59: =ROUND(IF(B59="Salary & Wages", H24*C59,IF(B59="Salary, Wages & Benefits",H35*C59,IF(B59="Total Direct Costs",H55*C59,0))),2) -> 131.56 | L59: =ROUND(IF(B59="Salary & Wages", L24*C59,IF(B59="Salary, Wages & Benefits",L35*C59,IF(B59="Total Direct Costs",L55*C59,0))),2) -> 135.5 | P59: =ROUND(IF(B59="Salary & Wages", P24*C59,IF(B59="Salary, Wages & Benefits",P35*C59,IF(B59="Total Direct Costs",P55*C59,0))),2) -> 139.57 | R59: =H59+L59+P59 -> 406.63
A61: TOTAL BUDGET | H61: =H55+H59 -> 423.91 | L61: =L55+L59 -> 436.6205 | P61: =P55+P59 -> 449.729962 | R61: =R55+R59 -> 1310.260462

Sheet List Options (hidden)
B2: Benefits | E2: Indirect
B3: TIAA | E3: Salary & Wages
B4: SERS | E4: Salary, Wages & Benefits
B5: PSERS | E5: Total Direct Costs
B6: N/A
B7: STUDENT
